fUSD/lending_fUSD_20251103
["ID","MTS","AMOUNT","RATE_DAILY","PERIOD"]
[392923958,1762145874505,-274.01863421,0.00014181,2]
[392923959,1762145877008,-500.0,0.00014181,2]
[392923960,1762145880398,9847.15650337,0.0001387,2]
[392923961,1762145880424,167.52349663,0.0001387,2]
[392923962,1762145880496,-214.6380603,0.00014181,2]
[392923963,1762145880521,-195.0,0.00014205,2]
[392923964,1762145880547,-90.3619397,0.00014217,2]
[392923965,1762145883881,-267.46595585,0.00014217,2]
[392923969,1762145887077,-220.38134753,0.00014217,2]
[392923970,1762145887102,-195.0,0.00014217,2]
[392923971,1762145887128,-168.0,0.00014217,2]
[392923972,1762145887153,-16.61865247,0.00014222,2]
[392923974,1762145888712,-283.38134753,0.00014222,2]
[392923975,1762145888740,-108.71278554,0.00014223,2]
[392923976,1762145891514,-300.0,0.00014223,2]
[392923977,1762145891542,-182.15802631,0.00014223,2]
[392923978,1762145893041,-588.56907632,0.0001415,2]
[392923979,1762145895914,-165.60681668,0.0001415,2]
[392923980,1762145898131,-187.2538,0.0001415,2]
[392923981,1762145900893,-316.98809815,0.0001415,2]
[392923982,1762145903112,-250.0,0.0001415,2]
[392923984,1762145905696,-129.29066485,0.0001415,2]
[392923985,1762145905721,-136.04487484,0.00014223,2]
[392923986,1762145908819,-312.74460604,0.00014223,2]
[392923987,1762145911498,-195.0,0.00014223,2]
[392923988,1762145913016,-207.42033652,0.00014223,2]
[392923991,1762146034340,203.69,0.00013853,2]
[392923992,1762146098085,168.0,0.00013983,2]
[392924004,1762146115303,9832.01,0.00013819,2]
[392924005,1762146115335,3712.69,0.00013819,2]
[392924006,1762146126084,156.92,0.00013699,2]
[392924007,1762146138748,500.0,0.00013,2]
[392924008,1762146139247,500.0,0.00012011,2]
[392924009,1762146141185,170.16520936,0.00014024,2]
[392924010,1762146150324,-2988.295563,0.00014053,2]
[392924011,1762146150357,-168.0,0.00014124,2]
[392924012,1762146150388,-379.08381981,0.00014152,2]
[392924013,1762146150638,-4144.826484,0.00014164,2]
[392924014,1762146150699,-1710.357032,0.00014164,2]
[392924015,1762146150730,-239.84119403,0.00014215,2]
[392924016,1762146150771,-199.54233367,0.00014223,2]
[392924017,1762146150806,-495.11530196,0.00014223,2]
[392924018,1762146226943,3560.48,0.00013885,2]
[392924019,1762146258571,1149.81827668,0.00014158,2]
[392924020,1762146258598,9583.75369062,0.00014158,2]
[392924021,1762146268675,-559.91937075,0.00014223,2]
[392924022,1762146269649,284.46,0.00013699,2]
[392924023,1762146287156,999.0,0.00013872,3]
[392924024,1762146308807,150.0,0.00013488,2]
[392924025,1762146309040,160.18493013,0.00013488,2]
[392924026,1762146309642,156.97152603,0.00013488,2]
[392924027,1762146311143,152.45231426,0.00013488,2]
[392924030,1762146315514,150.0,0.00013488,2]
[392924031,1762146315656,150.0,0.00013654,2]
[392924032,1762146315710,150.0,0.00013488,2]
[392924033,1762146315749,150.0,0.00013987,2]
[392924034,1762146315787,150.0,0.00013821,2]
[392924035,1762146315918,150.0,0.00014154,2]
[392924036,1762146316332,150.0,0.00013488,2]
[392924037,1762146316669,150.0,0.00013787,2]
[392924038,1762146316707,150.0,0.00014087,2]
[392924039,1762146318477,287.16679279,0.00013488,2]
[392924041,1762146322301,198.6855669,0.00013488,2]
[392924053,1762146325433,3782.810542,0.00014165,2]
[392924055,1762146327067,152.20018162,0.00013488,2]
[392924056,1762146327350,150.0,0.00013488,2]
[392924057,1762146327442,153.73969324,0.00013488,2]
[392924076,1762146338112,950.725384,0.00014165,2]
[392924098,1762146346133,199.54233368,0.00014223,2]
[392924128,1762146387770,751.23199385,0.00014161,2]
[392924130,1762146387795,557.10007805,0.00014161,2]
[392924136,1762146397006,-545.11802471,0.00014237,2]
[392924137,1762146399260,-638.58943523,0.00014237,2]
[392924138,1762146403940,-363.69680026,0.00014237,2]
[392924139,1762146406314,-252.03963095,0.00014237,2]
[392924140,1762146407965,-159.66198224,0.00014237,2]
[392924141,1762146409565,-176.49702007,0.00014237,2]
[392924142,1762146411029,-231.55302654,0.00014237,2]
[392924143,1762146414374,-132.84408,0.00014237,2]
[392924144,1762146414398,-150.0,0.00014237,2]
[392924145,1762146414421,-31.9257214,0.00014251,2]
[392924146,1762146416528,-163.0742786,0.00014251,2]
[392924147,1762146416550,-31.9257214,0.00014278,2]
[392924148,1762146419213,-163.0742786,0.00014278,2]
[392924149,1762146419236,-47.24401395,0.0001432,2]
[392924150,1762146423659,9442.90992195,0.00013813,2]
[392924151,1762146423685,1496.50007805,0.00013813,2]
[392924152,1762146424576,-102.75598605,0.0001432,2]
[392924153,1762146424601,-52.19949844,0.00014354,2]
[392924154,1762146440606,500.0,0.00013,2]
[392924155,1762146440944,500.0,0.00013,2]
[392924156,1762146441261,500.0,0.00012011,2]
[392924157,1762146441613,552.62673525,0.00012011,2]
[392924158,1762146443475,500.0,0.00013,2]
[392924159,1762146443817,500.0,0.00013,2]
[392924160,1762146444164,500.0,0.00013,2]
[392924161,1762146444571,500.0,0.00013,2]
[392924162,1762146444960,500.0,0.00013,2]
[392924163,1762146445258,500.0,0.00013,2]
[392924164,1762146445970,500.0,0.00012011,2]
[392924165,1762146446036,500.0,0.00012011,2]
[392924166,1762146446297,500.0,0.00012011,2]
[392924167,1762146446849,500.0,0.00013,2]
[392924168,1762146446897,500.0,0.00012011,2]
[392924169,1762146446949,500.0,0.00013,2]
[392924170,1762146447046,450.8831867,0.00012011,2]
[392924171,1762146447073,49.1168133,0.00012011,2]
[392924172,1762146447288,500.0,0.00012011,2]
[392924173,1762146447383,500.0,0.00012011,2]
[392924174,1762146447622,500.0,0.00012011,2]
[392924186,1762146450361,500.0,0.00013,2]
[392924234,1762146456459,-239.84119403,0.00014228,2]
[392924235,1762146456481,-114.96681702,0.00014354,2]
[392924236,1762146486851,166.66,0.00013699,2]
[392924237,1762146486951,-560.56813996,0.00014281,2]
[392924238,1762146487279,166.66,0.00013855,2]
[392924239,1762146487504,166.66,0.00014011,2]
[392924240,1762146487697,166.66,0.00014168,2]
[392924241,1762146489247,-173.61263391,0.00014281,2]
[392924242,1762146491457,-190.33801776,0.00014281,2]
[392924243,1762146493640,-212.93952365,0.00014281,2]
[392924244,1762146496511,-308.54670815,0.00014281,2]
[392924245,1762146499065,-165.60028277,0.00014281,2]
[392924246,1762146499323,722.0,0.000149,3]
[392924247,1762146500409,-182.30181709,0.00014281,2]
[392924248,1762146504593,300.0,0.00013981,2]
[392924249,1762146505251,-424.17736145,0.00014281,2]
[392924250,1762146506826,-206.89387929,0.00014281,2]
[392924251,1762146510797,-160.19533334,0.00014281,2]
[392924252,1762146514308,-356.87196951,0.00014281,2]
[392924253,1762146536989,-147.53180312,0.00014281,2]
[392924254,1762146537555,-166.66,0.00014324,2]
[392924255,1762146537578,-27.83368454,0.00014354,2]
[392924256,1762146537601,-150.0,0.00014387,2]
[392924257,1762146562164,9266.31,0.00013787,2]
[392924258,1762146608080,438.63639376,0.00014,2]
[392924259,1762146608105,882.00360624,0.00014,2]
[392924260,1762146609755,213.8,0.00013779,2]
[392924261,1762146609992,1320.64,0.00014,2]
[392924262,1762146611934,1320.64,0.00014,2]
[392924263,1762146613919,1320.64,0.00014,2]
[392924264,1762146615836,1320.64,0.00014,2]
[392924265,1762146631848,-286.59319029,0.00014396,2]
[392924266,1762146631858,-186.72680971,0.000144,2]
[392924267,1762146631870,-63.27319029,0.000144,2]
[392924268,1762146631879,-1192.98179971,0.00014405,2]
[392924269,1762146631905,-4.01820029,0.00014405,2]
[392924270,1762146631915,-195.0,0.00014407,2]
[392924271,1762146631925,-195.0,0.00014409,2]
[392924272,1762146631935,-168.0,0.0001444,2]
[392924273,1762146631945,-166.68,0.00014442,2]
[392924274,1762146631954,-168.0,0.00014455,2]
[392924275,1762146631964,-166.66,0.00014481,2]
[392924276,1762146631974,-150.0,0.00014487,2]
[392924277,1762146631983,-168.0,0.00014587,2]
[392924278,1762146631992,-181.50049428,0.00014648,2]
[392924279,1762146632004,-299.7658124,0.00014648,2]
[392924280,1762146632074,-163.52370582,0.00014648,2]
[392924281,1762146632084,-150.0,0.00014653,2]
[392924282,1762146632093,-150.0,0.00014687,2]
[392924283,1762146632116,-1200.0,0.00014699,2]
[392924284,1762146632128,-300.0,0.00014699,2]
[392924285,1762146632138,-300.0,0.00014699,2]
[392924286,1762146632148,-669.41490011,0.000147,2]
[392924287,1762146632158,-317.98144527,0.000147,2]
[392924294,1762146632260,-682.01855473,0.000147,2]
[392924296,1762146632270,-633.62677018,0.000147,2]
[392924298,1762146632282,-366.37322982,0.000147,2]
[392924301,1762146632293,-213.98738451,0.000147,2]
[392924303,1762146632305,-643.84349095,0.000147,2]
[392924305,1762146632317,-273.01985711,0.000147,2]
[392924307,1762146632329,-2936.29576743,0.000147,2]
[392924309,1762146632339,-669.41490007,0.00014722,2]
[392924311,1762146632349,-669.41490007,0.00014744,2]
[392924313,1762146632360,-669.41490007,0.00014767,2]
[392924315,1762146632370,-504.0,0.00014767,2]
[392924317,1762146632380,-300.0,0.00014788,2]
[392924319,1762146632390,-669.41490007,0.00014789,2]
[392924321,1762146632399,-1200.0,0.00014789,2]
[392924325,1762146632409,-150.0,0.0001479,2]
[392924329,1762146632420,-1062.4,0.00014791,2]
[392924331,1762146632430,-211.25781776,0.00014791,2]
[392924333,1762146632440,-623.58710448,0.00014791,2]
[392924335,1762146632450,-153.2192177,0.00014791,2]
[392924337,1762146632459,-322.6107,0.00014791,2]
[392924339,1762146632475,-151.0,0.00014791,2]
[392924342,1762146632486,-496.47127164,0.00014791,2]
[392924344,1762146632496,-500.0,0.00014791,2]
[392924346,1762146632507,-500.0,0.00014791,2]
[392924348,1762146632517,-500.0,0.00014791,2]
[392924350,1762146632527,-500.0,0.00014791,2]
[392924352,1762146632537,-500.0,0.00014791,2]
[392924354,1762146632547,-500.0,0.00014791,2]
[392924356,1762146632557,-500.0,0.00014791,2]
[392924358,1762146632568,-500.0,0.00014791,2]
[392924360,1762146632578,-500.0,0.00014791,2]
[392924362,1762146632589,-500.0,0.00014791,2]
[392924364,1762146632599,-500.0,0.00014791,2]
[392924366,1762146632610,-500.0,0.00014791,2]
[392924369,1762146632620,-500.0,0.00014791,2]
[392924371,1762146632630,-322.6107,0.00014791,2]
[392924373,1762146632640,-1733.659,0.00014798,2]
[392924374,1762146632649,-158.305,0.00014798,2]
[392924376,1762146632659,-3760.52149181,0.00014798,2]
[392924378,1762146632672,-5499.03850819,0.00014798,2]
[392924380,1762146632683,-299.99,0.00014798,2]
[392924383,1762146632693,-1091.45,0.00014798,2]
[392924385,1762146632703,-9999.99,0.00014798,2]
[392924387,1762146632713,-150.99,0.00014798,2]
[392924389,1762146632722,-479.94995508,0.00014799,2]
[392924391,1762146632733,-165.65868266,0.00014799,2]
[392924393,1762146632746,-500.0,0.00014799,2]
[392924395,1762146632756,-634.85138673,0.00014799,2]
[392924397,1762146632766,-500.0,0.00014799,2]
[392924399,1762146632777,-500.0,0.00014799,2]
[392924401,1762146632788,-500.0,0.00014799,2]
[392924403,1762146632797,-500.0,0.00014799,2]
[392924405,1762146632808,-150.0,0.00014799,2]
[392924407,1762146632818,-500.0,0.00014799,2]
[392924409,1762146632833,-500.0,0.00014799,2]
[392924411,1762146632844,-500.0,0.00014799,2]
[392924413,1762146632855,-500.0,0.00014799,2]
[392924416,1762146632865,-428.6624806,0.00014799,2]
[392924418,1762146632875,-500.0,0.00014799,2]
[392924420,1762146632885,-500.0,0.00014799,2]
[392924422,1762146632896,-500.0,0.00014799,2]
[392924424,1762146632907,-500.0,0.00014799,2]
[392924426,1762146632917,-583.50167947,0.00014799,2]
[392924428,1762146632928,-500.0,0.00014799,2]
[392924430,1762146632938,-500.0,0.00014799,2]
[392924432,1762146632948,-500.0,0.00014799,2]
[392924434,1762146632958,-500.0,0.00014799,2]
[392924436,1762146632968,-500.0,0.00014799,2]
[392924438,1762146632977,-500.0,0.00014799,2]
[392924440,1762146632987,-450.0,0.00014799,2]
[392924442,1762146632998,-500.0,0.00014799,2]
[392924444,1762146633008,-500.0,0.00014799,2]
[392924447,1762146633018,-500.0,0.00014799,2]
[392924449,1762146633028,-500.0,0.00014799,2]
[392924451,1762146633038,-500.0,0.00014799,2]
[392924453,1762146633047,-500.0,0.00014799,2]
[392924455,1762146633057,-500.0,0.00014799,2]
[392924457,1762146633067,-500.0,0.00014799,2]
[392924459,1762146633078,-500.0,0.00014799,2]
[392924461,1762146633088,-500.0,0.00014799,2]
[392924463,1762146633098,-500.0,0.00014799,2]
[392924465,1762146633109,-200.0,0.00014799,2]
[392924467,1762146633119,-500.0,0.00014799,2]
[392924469,1762146633129,-63808.46413026,0.000148,2]
[392924471,1762146633143,-68593.82870666,0.000148,2]
[392924475,1762146633171,-1317.37814711,0.000148,2]
[392924553,1762146637260,1340.46,0.00013913,2]
[392924556,1762146637793,-16700.44716003,0.000148,2]
[392924557,1762146637805,-25418.86345594,0.000148,2]
[392924558,1762146637814,-2548.6534,0.000148,2]
[392924559,1762146637824,-669.41490007,0.00014811,2]
[392924560,1762146637835,-150.0,0.0001482,2]
[392924561,1762146637845,-669.41490007,0.00014833,2]
[392924562,1762146637854,-669.41490007,0.00014856,2]
[392924563,1762146637864,-905.0,0.0001487,2]
[392924564,1762146637873,-431.88201784,0.00014872,2]
[392924565,1762146637884,-576.42464302,0.00014876,2]
[392924566,1762146637893,-336.32294128,0.00014876,2]
[392924567,1762146637902,-500.0,0.00014877,2]
[392924568,1762146637912,-669.41490007,0.00014878,2]
[392924569,1762146637922,-2751.0,0.00014878,2]
[392924570,1762146637932,-576.42464302,0.00014879,2]
[392924571,1762146637942,-576.42464302,0.00014881,2]
[392924572,1762146637952,-576.42464302,0.00014884,2]
[392924573,1762146637962,-2140.0,0.00014887,2]
[392924574,1762146637971,-559.0,0.00014887,2]
[392924575,1762146637981,-5765.176,0.00014887,2]
[392924576,1762146637991,-576.42464302,0.00014887,2]
[392924577,1762146638001,-576.42464302,0.00014889,2]
[392924578,1762146638011,-576.42464302,0.00014892,2]
[392924579,1762146638020,-576.42464302,0.00014895,2]
[392924580,1762146638030,-151.0,0.00014897,2]
[392924581,1762146638041,-576.42464302,0.00014897,2]
[392924582,1762146638050,-669.41490007,0.000149,2]
[392924583,1762146638061,-576.42464302,0.000149,2]
[392924584,1762146638071,-1901.69806818,0.000149,2]
[392924585,1762146638084,-1316.00390753,0.000149,2]
[392924586,1762146638100,-1086.66042849,0.000149,2]
[392924587,1762146638112,-695.6375958,0.000149,2]
[392924588,1762146638123,-376.8740054,0.000149,2]
[392924589,1762146638133,-1000.0,0.000149,2]
[392924590,1762146638143,-1176.78043043,0.000149,2]
[392924591,1762146638153,-1095.30183272,0.000149,2]
[392924592,1762146638163,-203.7939712,0.000149,2]
[392924593,1762146638173,-1912.92,0.00014921,2]
[392924594,1762146638184,-200.0,0.00014948,2]
[392924595,1762146638194,-150.0,0.00014948,2]
[392924596,1762146638204,-208.0,0.00014948,2]
[392924597,1762146638214,-186.965,0.00014948,2]
[392924598,1762146638224,-250.0,0.00014948,2]
[392924599,1762146638234,-214.691,0.00014948,2]
[392924600,1762146638243,-151.838,0.00014948,2]
[392924601,1762146638253,-250.0,0.00014948,2]
[392924602,1762146638263,-258.063,0.00014948,2]
[392924603,1762146638273,-188.79,0.00014948,2]
[392924604,1762146638283,-162.024,0.00014948,2]
[392924605,1762146638292,-209.754,0.00014948,2]
[392924606,1762146638302,-250.0,0.00014948,2]
[392924607,1762146638313,-218.281,0.00014948,2]
[392924608,1762146638323,-607.0,0.00014948,2]
[392924609,1762146638333,-573.0,0.00014948,2]
[392924610,1762146638343,-711.51665452,0.00014948,2]
[392924611,1762146638354,-8691.01972682,0.00014955,2]
[392924616,1762146639895,-1056.68712783,0.00014656,2]
[392924617,1762146639906,-5240.26651638,0.00014955,2]
[392924618,1762146639916,-4520.04635579,0.00014955,2]
[392924619,1762146640969,-33.88100606,0.00014955,2]
[392924620,1762146640984,-2846.07040505,0.00014955,2]
[392924621,1762146640993,-135.62546916,0.00014961,2]
[392924622,1762146641004,-43.04835992,0.00014961,2]
[392924623,1762146641014,-151.0,0.00014972,2]
[392924624,1762146641023,-199.2262633,0.00014973,2]
[392924625,1762146641032,-147.22537678,0.00014973,2]
[392924626,1762146641043,-68.04527126,0.00014973,2]
[392924627,1762146641052,-554.57776487,0.00014973,2]
[392924628,1762146641061,-467.37696387,0.00014973,2]
[392924629,1762146641072,-32.62303613,0.00014973,2]
[392924630,1762146641082,-501.01300883,0.00014973,2]
[392924631,1762146641091,-508.80393106,0.00014973,2]
[392924632,1762146641100,-46.56002398,0.00014973,2]
[392924633,1762146641135,-453.43997602,0.00014973,2]
[392924634,1762146641144,-500.0,0.00014973,2]
[392924635,1762146641153,-500.31544654,0.00014973,2]
[392924636,1762146641163,-500.0,0.00014973,2]
[392924637,1762146641172,-500.0,0.00014973,2]
[392924638,1762146641181,-500.0,0.00014973,2]
[392924639,1762146641191,-502.16051451,0.00014973,2]
[392924640,1762146641200,-500.0,0.00014973,2]
[392924641,1762146641209,-395.31126153,0.00014973,2]
[392924665,1762146642952,-104.68873847,0.00014973,2]
[392924666,1762146642961,-333.70652269,0.00014973,2]
[392924667,1762146643008,-166.94170364,0.00014973,2]
[392924668,1762146643017,-367.80657701,0.00014973,2]
[392924669,1762146643119,-240.5436146,0.00014973,2]
[392924670,1762146643128,-505.4433904,0.00014973,2]
[392924671,1762146643138,-500.0,0.00014973,2]
[392924672,1762146643147,-500.0,0.00014973,2]
[392924673,1762146643156,-500.46661689,0.00014973,2]
[392924674,1762146643165,-500.0,0.00014974,2]
[392924675,1762146643174,-2500.16349524,0.00014975,2]
[392924695,1762146645924,-500.0,0.00014869,2]
[392924696,1762146645936,-500.0,0.00014974,2]
[392924697,1762146645945,-102.0,0.00014975,2]
[392924698,1762146646033,-300.06207632,0.00014975,2]
[392924699,1762146646195,-1854.55632,0.00014975,2]
[392924700,1762146646206,-1493.2312474,0.00014975,2]
[392924820,1762146668380,429.13,0.00013699,2]
[392924821,1762146714966,1852.05639376,0.00014119,2]
[392924822,1762146714991,10000.01,0.00014119,2]
[392924823,1762146715015,10000.01,0.00014119,2]
[392924824,1762146715039,10000.01,0.00014119,2]
[392924825,1762146715064,8995.20360624,0.00014119,2]
[392924826,1762146729951,201.0,0.00014232,2]
[392924827,1762146734911,500.0,0.00013,2]
[392924828,1762146734954,303.80639376,0.00013,2]
[392924829,1762146734978,196.19360624,0.00013,2]
[392924830,1762146735047,500.0,0.00013,2]
[392924831,1762146735426,500.0,0.00013,2]
[392924832,1762146735536,500.0,0.00013,2]
[392924833,1762146735828,500.0,0.00013,2]
[392924834,1762146735904,500.0,0.00013,2]
[392924835,1762146736147,500.0,0.00013,2]
[392924836,1762146736261,500.0,0.00012011,2]
[392924837,1762146736467,500.0,0.00012011,2]
[392924838,1762146736620,500.0,0.00012011,2]
[392924839,1762146736801,500.0,0.00012011,2]
[392924840,1762146736995,500.0,0.00012011,2]
[392924841,1762146737194,500.0,0.00012011,2]
[392924842,1762146737547,500.0,0.00012011,2]
[392924843,1762146742291,500.0,0.00013,2]
[392924844,1762146742629,500.0,0.00013,2]
[392924845,1762146743022,500.0,0.00013,2]
[392924846,1762146743462,500.0,0.00012011,2]
[392924847,1762146743788,671.29303997,0.00012011,2]
[392924848,1762146743831,500.0,0.00013,2]
[392924849,1762146744129,132.52335379,0.00013,2]
[392924850,1762146744158,367.47664621,0.00013,2]
[392924851,1762146744462,500.0,0.00013,2]
[392924852,1762146744824,500.0,0.00013,2]
[392924853,1762146745633,500.0,0.00013,2]
[392924854,1762146745986,500.0,0.00013,2]
[392924855,1762146746023,500.0,0.00013,2]
[392924856,1762146746347,500.0,0.00013,2]
[392924857,1762146746385,500.0,0.00013,2]
[392924858,1762146746692,500.0,0.00012011,2]
[392924859,1762146746806,500.0,0.00012011,2]
[392924860,1762146747026,752.72436242,0.00012011,2]
[392924861,1762146747191,500.0,0.00012011,2]
[392924862,1762146747520,500.0,0.00012011,2]
[392924863,1762146747877,500.0,0.00012011,2]
[392924864,1762146748238,500.0,0.00012011,2]
[392924865,1762146748587,864.86712484,0.00012011,2]
[392924866,1762146749002,500.0,0.00013,2]
[392924867,1762146749863,500.0,0.00013,2]
[392924868,1762146749962,500.0,0.00013,2]
[392924869,1762146750002,341.97386208,0.00013,2]
[392924870,1762146750071,287.90195756,0.00013,2]
[392924871,1762146750110,500.0,0.00012011,2]
[392924872,1762146750453,737.16172461,0.00012011,2]
[392924873,1762146754569,151.0,0.00013,2]
[392924874,1762146757495,151.0,0.00013,2]
[392924875,1762146786948,-259.54487679,0.00013921,2]
[392924876,1762146788489,-166.66666668,0.00013921,2]
[392924877,1762146791845,-270.75869129,0.00013921,2]
[392924878,1762146793987,-162.64025443,0.00013921,2]
[392924879,1762146796332,-263.98617296,0.00013921,2]
[392924880,1762146798980,-550.78188939,0.00013921,2]
[392924881,1762146800545,-271.76290924,0.00013921,2]
[392924883,1762146850241,-53.85853922,0.00013921,2]
[392924884,1762146985808,469.0,0.000149,3]
[392924885,1762147005916,554.01,6.909e-05,2]
[392924886,1762147006129,554.01,7.273e-05,2]
[392924887,1762147006326,554.01,7.637e-05,2]
[392924888,1762147006532,554.01,8e-05,2]
[392924889,1762147006743,554.01,8.364e-05,2]
[392924890,1762147007146,554.01,8.728e-05,2]
[392924891,1762147007363,554.01,9.091e-05,2]
[392924892,1762147007551,554.01,9.455e-05,2]
[392924893,1762147007756,554.01,9.819e-05,2]
[392924894,1762147007980,554.01,0.00010182,2]
[392924895,1762147008412,554.01,0.00010546,2]
[392924896,1762147008518,554.01,0.0001091,2]
[392924897,1762147008603,554.01,0.00011273,2]
[392924898,1762147008879,554.01,0.00011637,2]
[392924899,1762147009081,554.01,0.00012,2]
[392924900,1762147009282,554.01,0.00012364,2]
[392924901,1762147009685,554.01,0.00012728,2]
[392924902,1762147009892,474.12292156,0.00013091,2]
[392924903,1762147009917,79.88707844,0.00013091,2]
[392924904,1762147010095,554.01,0.00013455,2]
[392924905,1762147010296,554.01,0.00013819,2]
[392924906,1762147046652,588.2598902,0.00013,2]
[392924907,1762147046925,800.0,0.00013,2]
[392924919,1762147159455,-201.58481839,0.00014155,2]
[392924920,1762147159493,-4141.41518161,0.00014155,2]
[392924921,1762147159693,-4343.0,0.00014197,2]
[392924922,1762147159726,-201.0,0.00014401,2]
[392924923,1762147164035,-195.0,0.00014405,2]
[392924924,1762147164060,-300.0,0.00014409,2]
[392924925,1762147164089,-6.65475357,0.00014418,2]
[392924926,1762147166111,-188.34524643,0.00014418,2]
[392924927,1762147166138,-83.41766281,0.00014423,2]
[392924928,1762147168048,-411.97479195,0.00014423,2]
[392924929,1762147169909,-250.0,0.00014423,2]
[392924930,1762147171514,-383.67767346,0.00014423,2]
[392924931,1762147174273,-300.77396753,0.00014423,2]
[392924932,1762147176985,-537.33360049,0.00014423,2]
[392924933,1762147178638,-180.27972521,0.00014423,2]
[392924934,1762147182096,-774.26494022,0.00014423,2]
[392924935,1762147185652,-404.91698157,0.00014423,2]
[392924936,1762147188455,-166.61164153,0.00014423,2]
[392924943,1762147204304,-159.85303996,0.00014423,2]
[392924946,1762147205768,-300.0,0.00014423,2]
[392924947,1762147208189,-195.0,0.00014423,2]
[392924948,1762147210347,-166.66,0.00014423,2]
[392924949,1762147212714,-28.23597527,0.00014423,2]
[392924950,1762147212738,-131.04061443,0.00014431,2]
[392924951,1762147231321,912.01,0.00013951,2]
[392924952,1762147231347,10000.01,0.00013951,2]
[392924953,1762147231373,4452.16,0.00013951,2]
[392924954,1762147294100,5547.85,0.00013787,2]
[392924955,1762147294126,8545.79,0.00013787,2]
[392924956,1762147324521,-63.95938557,0.00014431,2]
[392924957,1762147324549,-136.04061443,0.00014439,2]
[392924958,1762147349583,1454.22,0.00013777,2]
[392924959,1762147349611,10000.01,0.00013777,2]
[392924960,1762147349635,10000.01,0.00013777,2]
[392924961,1762147349661,10000.01,0.00013777,2]
[392924962,1762147349685,10000.01,0.00013777,2]
[392924963,1762147349709,7367.92,0.00013777,2]
[392924964,1762147354794,2632.09,0.00014323,2]
[392924965,1762147354823,3001.91,0.00014323,2]
[392924966,1762147366049,5634.0,0.00014266,2]
[392924967,1762147366720,250.0,0.00013791,2]
[392924968,1762147399274,-300.0,0.00014449,2]
[392924969,1762147442621,500.0,0.00013771,2]
[392924970,1762147457149,231.11168866,0.00014368,2]
[392924971,1762147458001,382.98831134,0.00013753,2]
[392924972,1762147458029,617.01168866,0.00013753,2]
[392924973,1762147476753,-319.40133199,0.0001446,2]
[392924974,1762147478855,-215.80525928,0.0001446,2]
[392924975,1762147480936,-331.82457427,0.0001446,2]
[392924976,1762147482600,-179.07420685,0.0001446,2]
[392924977,1762147486609,-343.03202729,0.0001446,2]
[392924978,1762147488299,-349.35957784,0.0001446,2]
[392924979,1762147504839,-215.60324455,0.0001446,2]
[392924980,1762147506700,150.0,0.00013488,2]
[392924981,1762147506765,150.0,0.00013987,2]
[392924982,1762147507068,150.0,0.00013488,2]
[392924983,1762147507118,150.0,0.00013638,2]
[392924984,1762147507183,150.0,0.00013937,2]
[392924985,1762147507225,150.0,0.00013787,2]
[392924986,1762147507323,150.0,0.00014087,2]
[392924987,1762147507384,150.0,0.00014237,2]
[392924988,1762147507454,150.0,0.00014387,2]